Cogmind - Beta 11.1 *** ADVENTURER MODE // 2022.08.08 @ 19:16:27 Player: Olexender Result: Destroyed by Dirty Bomb Trap Performance ------------- Evolutions (0) 0 Regions Visited (4) 800 Robots Destroyed (36) 180 Value Destroyed (769) 769 Prototype IDs (27) 540 Alien Tech Used (0) 0 Bonus (448) 448 TOTAL SCORE: 2737 Bonus ------- Follower Combat Kills 148 Aligned with FarCom 300 Cogmind --------- Core Integrity 0/250 Matter 211/300 Energy 230/250 System Corruption 1% Temperature Cool (0) Movement Walking (190) Ox1 Location -9/Mines Parts ------- > --- POWER (1) -------- Ion Engine > --- PROPULSION (2) --- Aluminum Leg Aluminum Leg > --- UTILITY (2) ------ Large Storage Unit ECM Suite > --- WEAPON (2) ------- Assault Rifle > --- INVENTORY (15) --- Aluminum Leg Compact Wheel Compact Wheel Medium Storage Unit High-capacity Matter Pod (107) Trap Reconfigurator Mining Laser Peak State ------------ > --- POWER ------------ Ion Engine > --- PROPULSION ------- Aluminum Leg Makeshift Leg > --- UTILITY ---------- Large Storage Unit Structural Scanner > --- WEAPON ----------- Medium Laser Heavy Assault Rifle > --- INVENTORY -------- Ion Engine Aluminum Leg Aluminum Leg Aluminum Leg Compact Wheel Compact Wheel Medium Storage Unit High-capacity Matter Pod ECM Suite Trap Reconfigurator Assault Rifle Grenade Launcher Mining Laser [Rating: 13] Favorites ----------- Power Ion Engine Engine Ion Engine Propulsion Aluminum Leg Leg Aluminum Leg Utility Structural Scanner Device Structural Scanner Storage Large Storage Unit Weapon Heavy Assault Rifle Energy Gun Medium Laser Ballistic Gun Heavy Assault Rifle Launcher Grenade Launcher Special Weapon Mining Laser Build | -11 -10 -10 -10 -9 ------- Run | Scr Mat Min Exi Min Slots Evolved . | . . . . . Power . | . . . . . Propulsion . | . . . . . Utility . | . . . . . Weapon . | . . . . . Parts Attached 24 | 6 7 5 . 6 Power 2 | 1 . . . 1 Engine 2 | 1 . . . 1 Core . | . . . . . Reactor . | . . . . . Propulsion 8 | 2 1 3 . 2 Treads . | . . . . . Leg 8 | 2 1 3 . 2 Wheel . | . . . . . Hover . | . . . . . Flight . | . . . . . Utility 4 | 1 2 . . 1 Device 2 | . 1 . . 1 Storage 2 | 1 1 . . . Processor . | . . . . . Hackware . | . . . . . Protection . | . . . . . Artifact . | . . . . . Weapon 10 | 2 4 2 . 2 Energy Gun 3 | 1 1 1 . . Energy Cannon . | . . . . . Ballistic Gun 5 | 1 2 1 . 1 Ballistic Cannon . | . . . . . Launcher 1 | . . . . 1 Special Weapon 1 | . 1 . . . Impact Weapon . | . . . . . Slashing Weapon . | . . . . . Piercing Weapon . | . . . . . Special Melee Weapon . | . . . . . Unidentified Prototypes . | . . . . . Parts Lost 9 | . . 2 . 7 Power 1 | . . . . 1 Propulsion 2 | . . . . 2 Utility 1 | . . . . 1 Weapon 5 | . . 2 . 3 Highest Loss Streak 5 | . . 1 . 5 To Critical Strikes . | . . . . . Average Slot Usage (%) 96 | . 99 91 100 97 Engine 13 | . 14 14 14 12 Leg 27 | . 28 28 28 27 Device 13 | . 13 14 14 13 Storage 14 | . 14 14 14 14 Energy Gun 10 | . 13 6 14 9 Ballistic Gun 14 | . 14 13 14 14 Naked Turns . | . . . . . Heaviest Build 33 | 14 32 32 31 33 Greatest Support 30 | 20 20 30 30 30 Greatest Overweight (x) 2 | 2 1 1 1 1 Average Overweight (x) . | . . 1 1 . Largest Inventory Capacity 15 | 8 15 15 15 15 Average Capacity 14 | 7 13 15 15 15 Most Carried 15 | 5 15 15 13 13 Average Carried 12 | 3 11 14 12 11 Final Capacity 15 | 8 15 15 15 15 Final Carried 15 | 4 15 12 13 7 Class Distribution -------------------- 100% | Mutant Dominant Class ---------------- Mutant | -10/Materials Mutant | -10/Mines Mutant | -10/Exiles Mutant | -9/Mines Resources | -11 -10 -10 -10 -9 ----------- Run | Scr Mat Min Exi Min Matter Collected 705 | 299 185 141 . 80 Remotely . | . . . . . Salvage Created 1015 | 148 664 95 . 108 Parts 69 | 5 47 8 . 9 Haulers Intercepted 2 | . 2 . . . Recyclers Shooed . | . . . . . Parts Field Recycled . | . . . . . Retrieved Matter . | . . . . . Parts Self-Destructed . | . . . . . Prevented . | . . . . . Kills | -11 -10 -10 -10 -9 ------- Run | Scr Mat Min Exi Min Combat Hostiles Destroyed 24 | . 15 5 . 4 Guns 22 | . 15 5 . 2 AOE 2 | . . . . 2 Classes Destroyed 9 | 2 5 . . 2 Builder 1 | . 1 . . . Tunneler 5 | 4 . 1 . . Hauler 2 | . 2 . . . Recycler 1 | 1 . . . . Watcher 3 | . 3 . . . Swarmer 8 | . 3 5 . . Grunt 14 | . 12 . . 2 Brawler 1 | . . . . 1 Demolisher 1 | . . . . 1 Best Kill Streak 7 | 4 7 3 . 2 Combat Bots Only 6 | . 6 3 . 2 Max Kills in Single Turn 2 | 1 2 2 . 1 Gunslinging 1 | . 1 1 . . Exploded 1 | . . . . 1 Melee . | . . . . . Uniques/NPCs Destroyed . | . . . . . Combat | -11 -10 -10 -10 -9 -------- Run | Scr Mat Min Exi Min Damage Taken 1234 | . 476 169 . 589 Core 267 | . 160 25 . 82 Absorbed by Shields . | . . . . . Core Remaining (%) 100 | 100 . . . . Volleys Fired 98 | 13 47 26 . 12 Largest 2 | 2 2 2 . 2 Hottest 100 | 70 100 88 . 73 Shots Fired 168 | 26 91 29 . 22 Gun 162 | 26 89 29 . 18 Cannon . | . . . . . Launcher 4 | . . . . 4 Special 2 | . 2 . . . Kinetic 91 | 13 45 21 . 12 Thermal 73 | 13 46 8 . 6 Explosive 4 | . . . . 4 Electromagnetic . | . . . . . Robot Hit Streak 17 | 15 17 5 . 9 Robot Miss Streak 3 | 1 3 3 . 1 Penetration Max . | . . . . . Secondary Targets 5 | . 3 1 . 1 Max Gunslinging Chain 1 | . 1 1 . 1 Shots Hit Robots 121 | 20 62 20 . 19 Core Hits 47 | 6 26 8 . 7 Critical Kills . | . . . . . Critical Parts Destroyed . | . . . . . Critical Strikes 6 | 1 2 . . 3 Burn 6 | 1 2 . . 3 Melee Attacks . | . . . . . Impact . | . . . . . Slashing . | . . . . . Piercing . | . . . . . Sneak Attacks . | . . . . . Combat Hostiles . | . . . . . Follow-up Attacks . | . . . . . Damage Inflicted 1797 | 264 983 295 . 255 Guns 1752 | 264 983 282 . 223 Cannons . | . . . . . Explosions 29 | . . . . 29 Melee . | . . . . . Ramming 16 | . . 13 . 3 Kinetic 938 | 111 465 203 . 159 Thermal 814 | 153 518 79 . 64 Explosive 29 | . . . . 29 Electromagnetic . | . . . . . Impact . | . . . . . Slashing . | . . . . . Piercing . | . . . . . Highest Corruption . | . . . . . Average Corruption . | . . . . . Corruption Purged . | . . . . . Corruption Blocked . | . . . . . Overload Shots . | . . . . . Overflow Damage . | . . . . . Projectiles . | . . . . . Explosions . | . . . . . Melee . | . . . . . Knockbacks . | . . . . . Impact . | . . . . . Kinetic . | . . . . . Secondary . | . . . . . Self-Inflicted Damage . | . . . . . Shots . | . . . . . Rammed . | . . . . . Targets Rammed 6 | . . 4 . 2 Kicked 6 | . . 4 . 2 Crushed . | . . . . . Highest Temperature 366 | 36 366 62 . 108 Average Temperature 82 | 14 106 23 . 55 Received Heat Transfer 327 | . 228 51 . 48 Effects 1 | . 1 . . . Energy Bleed 1 | . 1 . . . Siege Activations . | . . . . . Robots Corrupted . | . . . . . Combat Hostiles . | . . . . . Parts Fried 1 | . . . . 1 Impact Corruptions . | . . . . . Robots Melted . | . . . . . Combat Hostiles . | . . . . . Parts Melted 4 | 3 1 . . . Heat Transferred 2516 | 518 1369 222 . 407 Parts Sabotaged . | . . . . . Parts Stolen . | . . . . . Parts Stripped . | . . . . . Power Chain Reactions . | . . . . . Missiles Intercepted . | . . . . . Alert | -11 -10 -10 -10 -9 ------- Run | Scr Mat Min Exi Min Peak Influence 349 | 25 349 157 . 63 Initial 35 | . 13 35 . . Average 76 | 11 104 73 . 37 Maximum Alert Level 1 | . 1 . . . Low Security (%) 94 | 100 86 100 . 100 Level 1 5 | . 13 . . . Level 2 . | . . . . . Level 3 . | . . . . . Level 4 . | . . . . . Level 5 . | . . . . . High Security . | . . . . . Max Security . | . . . . . Squads Dispatched 3 | . 3 . . . Investigation 3 | . 3 . . . Extermination . | . . . . . Reinforcement . | . . . . . Assault . | . . . . . Garrison . | . . . . . Intercept . | . . . . . Searches Triggered . | . . . . . Construction Impeded . | . . . . . Haulers Reinforced . | . . . . . Active Scanning Responses . | . . . . . Cargo Convoy Interrupts . | . . . . . Stealth | -11 -10 -10 -10 -9 --------- Run | Scr Mat Min Exi Min Distress Signals 2 | . 2 . . . Communications Jammed . | . . . . . Distress Signals . | . . . . . Times Spotted 44 | . 22 14 . 8 Peak Tracking Total 6 | . 6 3 . 3 Tactical Retreats 3 | . 2 1 . . Traps | -11 -10 -10 -10 -9 ------- Run | Scr Mat Min Exi Min Traps Triggered 1 | . 1 . . . Indirectly . | . . . . . Trap Hack Attempts . | . . . . . Triggered . | . . . . . Disarmed . | . . . . . Reprogrammed . | . . . . . Reused . | . . . . . Traps Extracted . | . . . . . Installed . | . . . . . Triggered 1 | . . . . 1 Machines | -11 -10 -10 -10 -9 ---------- Run | Scr Mat Min Exi Min Machines Disabled . | . . . . . Max in Single Turn . | . . . . . Machines Sabotaged . | . . . . . Garrisons Compromised . | . . . . . Overloaded Fab Kills . | . . . . . Hacking | -11 -10 -10 -10 -9 --------- Run | Scr Mat Min Exi Min Machines Accessed 13 | . 10 1 2 . Terminals 9 | . 8 1 . . Fabricators . | . . . . . Repair Stations . | . . . . . Recycling Units 2 | . 2 . . . Scanalyzers . | . . . . . Garrison Access . | . . . . . Total Hacks 53 | . 41 2 10 . Successful 41 | . 30 1 10 . Failed 12 | . 11 1 . . Catastrophic 1 | . 1 . . . Database Lockouts . | . . . . . Manual 1 | . . . 1 . Terminals 41 | . 39 2 . . Fabricators . | . . . . . Repair Stations . | . . . . . Recycling Units 2 | . 2 . . . Scanalyzers . | . . . . . Garrison Access . | . . . . . Terminal Hacks 39 | . 28 1 10 . Record 10 | . 1 . 9 . Prototype ID Bank 2 | . 2 . . . Level Access Points 1 | . 1 . . . Branch Access Points 1 | . 1 . . . Emergency Access Points 1 | . 1 . . . Scanalyzer Index 1 | . 1 . . . Alert Level 3 | . 3 . . . Unreport Threat 1 | . 1 . . . Locate Traps 1 | . 1 . . . Dispatch Records 4 | . 4 . . . Surveillance Status 3 | . 3 . . . Patrol Status 2 | . 1 1 . . Transport Status 1 | . 1 . . . Hauler Manifests 2 | . 2 . . . Registered Components 1 | . 1 . . . Zone Layout 4 | . 4 . . . EX-Prototype ID Bank 1 | . . . 1 . Fabricator Hacks . | . . . . . Repair Station Hacks . | . . . . . Recycling Unit Hacks 2 | . 2 . . . Report Inventory 2 | . 2 . . . Scanalyzer . | . . . . . Garrison Access Hacks . | . . . . . Unauthorized Hacks . | . . . . . Terminals . | . . . . . Fabricators . | . . . . . Repair Stations . | . . . . . Recycling Units . | . . . . . Scanalyzers . | . . . . . Garrison Access . | . . . . . Data Cores Recovered . | . . . . . Used . | . . . . . Hacking Detections 7 | . 6 1 . . Full Trace Events 4 | . 4 . . . Feedback Events . | . . . . . Feedback Blocked . | . . . . . Robot Schematics Acquired . | . . . . . Robots Built . | . . . . . Authchips . | . . . . . Time . | . . . . . Total Robot Build Rating . | . . . . . Part Schematics Acquired . | . . . . . Parts Built . | . . . . . Authchips . | . . . . . Time . | . . . . . Total Part Build Rating . | . . . . . Parts Repaired . | . . . . . Time . | . . . . . Parts Recycled . | . . . . . Recycled Matter . | . . . . . Retrieved Matter . | . . . . . Retrieved Components . | . . . . . Parts Scanalyzed . | . . . . . Part Schematics Acquired . | . . . . . Parts Damaged . | . . . . . Bothacking | -11 -10 -10 -10 -9 ------------ Run | Scr Mat Min Exi Min Used RIF Installer . | . . . . . Robots Hacked . | . . . . . Non-combat . | . . . . . Combat . | . . . . . Robot Hacks Applied . | . . . . . Relay Couplers Released . | . . . . . Fabnet Peak Effective % . | . . . . . Robots Rewired . | . . . . . Allies Hacked . | . . . . . Hacks Repelled . | . . . . . Allies | -11 -10 -10 -10 -9 -------- Run | Scr Mat Min Exi Min Total Allies 2 | . . 2 . . Largest Group 2 | . . 2 . . Highest-Rated Group 41 | . . 41 . . Highest-Rated Ally 31 | . . 31 . . Total Orders . | . . . . . Ally Attacks 19 | . . 19 . . Total Damage 270 | . . 270 . . Kills 8 | . . 8 . . Allies Corrupted . | . . . . . Allies Melted . | . . . . . Intel | -11 -10 -10 -10 -9 ------- Run | Scr Mat Min Exi Min Robot Analysis Total . | . . . . . Derelict Logs Recovered 1 | . . 1 . . Drone Launches . | . . . . . Drone Recoveries . | . . . . . Exploration | -11 -10 -10 -10 -9 ------------- Run | Scr Mat Min Exi Min Turns Passed 3374 | 133 1109 1049 577 506 Spaces Moved 1663 | 75 559 510 289 230 Core 20 | 20 . . . . Treads . | . . . . . Legs 1643 | 55 559 510 289 230 Wheels . | . . . . . Hover . | . . . . . Flight . | . . . . . Fastest Speed 50 | 50 120 190 200 130 Average Speed 181 | 108 168 191 200 191 Slowest Speed 200 | 150 190 200 200 200 Overloaded Moves . | . . . . . Propulsion Burnouts . | . . . . . Robots Hopped . | . . . . . Cave-ins Triggered . | . . . . . Exploration Rate (%) 59 | 4 97 95 70 33 Regions Visited 4 Branch Regions 3 Pre-discovered Areas 1 | . . 1 . . Known Exits Taken 1 | . 1 . . . Unknown Exits Taken 3 | 1 . 1 1 . Scrap Searched 1 | . . 1 . . Spaces Dug 2 | . 2 . . . Terrain Destroyed 23 | . 2 . . 21 Melee . | . . . . . Projectile 2 | . 2 . . . AOE 21 | . . . . 21 Terrain Rammed . | . . . . . Walls Destroyed . | . . . . . Machines Disabled . | . . . . . Actions | -11 -10 -10 -10 -9 --------- Run | Scr Mat Min Exi Min Total 1841 | 99 634 548 289 271 Wait 26 | . 4 1 . 21 Move 1659 | 74 558 509 288 230 Hop . | . . . . . Pick Up 22 | 6 14 1 1 . Fast Attach 4 | 4 . . . . Attach 11 | 2 1 2 . 6 Detach . | . . . . . Swap 9 | . 6 3 . . Drop 6 | . 4 2 . . Fire 98 | 13 47 26 . 12 Melee . | . . . . . Ram . | . . . . . Kick 6 | . . 4 . 2 Crush . | . . . . . Escape Stasis . | . . . . . Rewire . | . . . . . Trap . | . . . . . Miscellaneous . | . . . . . Route ------- -11/Scrapyard -10/Materials (discovered 4 exits: *Mat x3 / *Min) -10/Mines (discovered 3 exits: *Mat x2 / *Exi) -10/Exiles -9/Mines History --------- Turn | Location | Event 23 | -11/Scrapyard | Discovered new exit (range 15) 134 | -11/Scrapyard | Entered Materials 317 | -10/Materials | Build established: Mutant 333 | -10/Materials | Identified exit to Materials 500 | -10/Materials | Identified exit to Mines 528 | -10/Materials | Core integrity fell below 50% 1243 | -10/Materials | Entered Mines 1311 | -10/Mines | Met a Derelict bent on vengeance 1321 | -10/Mines | Learned Materials garrison access intel 1671 | -10/Mines | Learned location of Storage (-7) 1824 | -10/Mines | A weapon hastily lodged in a ceiling crevice suddenly fell to the ground 1948 | -10/Mines | Deemed a non-threat by the Exiles lab entrance 1948 | -10/Mines | Discovered new exit (range 5) 1992 | -10/Mines | Discovered exit to Materials (range 8) 2019 | -10/Mines | Discovered exit to Materials (range 8) 2292 | -10/Mines | Entered Exiles 2340 | -10/Exiles | Met 8R-AWN 2372 | -10/Exiles | Met EX-HEX 2436 | -10/Exiles | Met EX-BIN 2466 | -10/Exiles | Aligned with FarCom system 2468 | -10/Exiles | Given EX-Vault access code 2534 | -10/Exiles | Opened EX-Vault 2550 | -10/Exiles | Found Trap Reconfigurator 2593 | -10/Exiles | Warned to stay clear of 0b10 Research branches 2645 | -10/Exiles | Met EX-DEC 2847 | -10/Exiles | Discovered new exit (range 12) 2869 | -10/Exiles | Left Exiles lab with Trap Reconfigurator 2869 | -10/Exiles | Entered Mines 2881 | -9/Mines | Core integrity fell below 20% 3137 | -9/Mines | Assembled infested the area 3268 | -9/Mines | Lost 5 parts (1p2n1u1w) 3375 | -9/Mines | Destroyed by Dirty Bomb Trap Last Messages --------------- 03208_ Seismic Survey Station disabled. 03210_ Med. Laser destroyed. 03235_ The unstable cave ceiling collapses. 03235_ Aluminum Leg destroyed. 03235_ Structural Scanner destroyed. 03237_ Mak. Leg destroyed. 03238_ D-53 Grenadier destroyed. 03250_ The unstable cave ceiling collapses. 03330_ K-01 Serf collects debris. 03344_ Kicked T-07 Excavator out of the way. 03360_ A derelict is hurriedly installing traps. 03373_ Hvy. Assault Rifle destroyed. 03375_ G-47 Trooper triggered Dirty Bomb Trap. 03375_ An explosion rips through the floor. 03375_ Heat Sink fried. 03375_ G-34 Mercenary destroyed. 03375_ Dirty Bomb Trap short circuited. 03375_ An explosion rips through the floor. 03375_ G-47 Trooper destroyed. 03375_ Grenade Launcher destroyed. Map ----- +----------------------------------------------------+ | #### #########?????????????????? | | ### #########?????????????????? | | ### ##?????????????????? | | #### ##### ##?????????????????? | | ?##### ##### ##?????????????????? | | ??##### ##?## ##?????????????????? | | ????### ##?## ##?????????????????? | | ####### ### ##?## #################??? | | ####### ### ##### #################??? | | ### ### #### ##??? | | ### ##### ##??? | | ############## ##### #### [ ##??? | | ############## ##?## #### * ##??? | | ?????????????# ##?# ### = == ##??? | | ?????????????# ### ## / ##??? | | ?????????????# ## ##??? | | ????????????## ## ##??? | | ????????????# ## ##############??? | | ????????????# ###################??? | | ????????????# #######???????????????? | | ???????????## ###????????????????????? | | ??????????## ##?????????????????????? | | ??????????# #??????????????????????? | | ??????????# #######;;#????????? #??? | | ??????????## #??? | | ???????????## ########; @ g= ;???????? | | ????????????####??????? %% ???????? | | ???????????????????????; # ?^#???????? | | ??????????????????????? ? ?????????? | | ???????????????????????#^#?? ????????? | | ???????????????????????# ??? ??????? | | ???????????????????????# ???? ?????? | | ???????????????????????###????? ????? | | ????????????????????????????????## ???? | | ??????????????????????????????????? #??? | | ????????????????????????????????????#??? | | ???????????????????????????????????????? | | ???????????????????????????????????????? | | ???????????????????????????????????????? | | ???????????????????????????????????????? | | ???????????????????????????????????????? | | ???????????????????????????????????????? | | ???????????????????????????????????????? | | ???????????????????????????????????????? | | ???????????????????????????????????????? | | ???????????????????????????????????????? | | ???????????????????????????????????????? | | ???????????????????????????????????????? | | ???????????????????????????????????????? | | ???????????????????????????????????????? | +----------------------------------------------------+ Best States ------------- Heat Dissipation 25 Energy Generation 10 Energy Capacity 250 Matter Stores 300 Matter Capacity 300 Sight Range 16 Terrain Scan Density 10 ECM Strength 1 Resistance: KI 20 Resistance: TH 20 Resistance: EX 20 Resistance: EM 20 Resistance: I 20 Resistance: S 20 Resistance: P 20 Evasion (%) 55 Offensive Hacking 10 Item Schematics ----------------- None Robot Schematics ------------------ None Fabricated ------------ Nothing Alien Tech Used ----------------- None Achievements -------------- None Challenges ------------ None Game ------ Seed NeutronStormScrap Manual? 0 Play Time 00:23:35 Cumulative 66.5 hours Start 2022.08.08 @ 18:45:27 End 2022.08.08 @ 19:16:27 Sessions 1 Manual Loads 0 Difficulty Adventurer Special Mode None Game No. 73 Rogue 0 Adventurer 73 Explorer 0 Win Type - Total 0 Types 0/0/0/0/0/0/0/0/0 Lore% 35 Gallery% 47 Achievement% 33 Wizard Run 0 Options --------- ASCII 0 Keyboard 0 Movement Mouse Keybinds 0 Fullscreen 1 Font 24/Smallcaps Map View 113x50 Tactical HUD 1 Map Filters NONE Filters NONE Steam 1 RUN: d4c7811d-7f84-4356-8905-f8a47ada340e